[Event "34th Pula Open 2022"]
[Site "Pula"]
[Date "2022.06.19"]
[Round "2.9"]
[White "Grahn, Vidar"]
[Black "Maier, Christian"]
[Result "0-1"]
[ECO "C54"]
[WhiteElo "2023"]
[BlackElo "2299"]
[Annotator "TA"]
[PlyCount "142"]
[EventDate "2022.06.18"]
[EventType "swiss"]
[EventCountry "CRO"]
[SourceTitle "playchess.com"]
[Source "ChessBase"]
[SourceQuality "1"]
[TimeControl "5400+30"]

{[%evp 18,142,10,18,14,0,14,0,0,-20,-15,-20,-20,-20,-20,-20,-22,-22,-22,-23,-22,-30,0,-13,0,-16,0,-48,-50,-47,-42,-56,-40,-40,-40,-40,-26,-40,-40,-57,-57,-57,-49,-56,-47,-71,-57,-78,-78,-79,-79,-79,-50,-79,-79,-95,-92,-344,-337,-307,-345,-271,-263,-247,-174,-175,-182,-191,-189,-185,-160,-297,-283,-412,-374,-377,-375,-373,-368,-403,-347,-487,-473,-458,-447,-2268,-2242,-1405,-1999,-1253,-964,-5709,-3226,-4383,-5061,-2403,-1805,-1510,-1353,-2047,-1856,-1816,-1754,-1635,-1536,-2058,-2050,-10933,-6409,-29977,-29978,-29978,-29979,-29980,-29981,-29981,-29982,-29983,-29984,-29985,-29986,-29986,-29987,-29987,-29988,-29989,-29990]} 1. e4 {[%emt 0:00:04]} e5 {[%emt 0:01:56]} 2. Nf3 {[%emt 0:00:04]} Nc6 {[%emt 0:00:06]} 3. Bc4 {[%emt 0:00:06]} Bc5 {[%emt 0:00:12]} 4. c3 {[%emt 0:00:07]} Nf6 {[%emt 0:00:01]} 5. d3 {[%emt 0:00:06]} a6 {[%emt 0:00:33]} 6. Nbd2 {[%emt 0:00:36]} Ba7 {[%emt 0:00:08]} 7. Bb3 {[%emt 0:01:00]} d6 {[%emt 0:00:32]} 8. h3 {[%emt 0:00:37]} O-O {[%emt 0:00:49]} 9. O-O {[%emt 0:00:15]} h6 {[%emt 0:05:30]} 10. Re1 {[%emt 0:00:24]} Re8 $1 {[%emt 0:09:24][%mdl 4] now scores much better than the old 10...Nh5. C54: Giuoco Piano: 4 c3 Nf6, main lines with 5 d4 and 5 d3.} 11. a4 {[%emt 0:03:52]} Be6 {[%emt 0:08:05]} 12. Nc4 {[%emt 0:06:28]} Ne7 {[%emt 0:08:25] [#] The position is equal.} 13. Bc2 $146 {[%emt 0:05:25]} ({Predecessor:} 13. a5 Ng6 14. Be3 Bxe3 15. Rxe3 Qe7 16. d4 Rad8 17. d5 Bc8 18. Ba4 Rf8 19. b4 {½-½ (58) Bojkov,D (2544)-Clery,N (2392) Belgium 2011}) 13... Ng6 {[%emt 0:00:30]} 14. Be3 {[%emt 0:03:54]} Bxc4 {[%emt 0:02:20]} 15. dxc4 {[%emt 0:00:29]} Bxe3 {[%emt 0:00:17]} 16. Rxe3 {[%emt 0:00:25]} a5 {[%emt 0:00:00]} 17. g3 {[%emt 0:06:54]} Qd7 {[%emt 0:05:28]} 18. Kg2 {[%emt 0:01:11]} Qc6 {[%emt 0:01:40]} 19. b3 {[%emt 0:01:26]} Nd7 {[%emt 0:02:35]} 20. h4 {[%emt 0:07:27]} Nf6 {[%emt 0:00:16]} 21. Nh2 {[%emt 0:03:00]} Qd7 {[%emt 0:01:57]} 22. h5 {[%emt 0:05:38]} (22. Re1 $11) 22... Nf8 $15 {[%emt 0:00:09][%cal Bg6f8,Bf8e6,Be6g5,Bg5f3][%mdl 32]} 23. Qe2 {[%emt 0:04:12]} Ne6 {[%emt 0:03:16]} 24. Rh1 {[%emt 0:05:10]} Ng5 {[%emt 0:04:46]} 25. Nf3 {[%emt 0:04:37]} Nxf3 {[%emt 0:02:15]} 26. Rxf3 {[%emt 0:00:51]} Qe7 {[%emt 0:01:13]} 27. Rh4 {[%emt 0:04:15]} Rad8 {[%emt 0:00:34]} 28. b4 {[%emt 0:06:05]} Nh7 {[%emt 0:01:43]} 29. b5 {[%emt 0:13:32]} Ng5 {[%emt 0:00:21]} 30. Re3 {[%emt 0:01:02]} Ne6 {[%emt 0:00:28][%cal Oe7h4]} 31. Rg4 {[%emt 0:01:10]} Kh8 {[%emt 0:01:08]} 32. Rf3 {[%emt 0:02:34]} Rg8 {[%emt 0:02:58]} 33. Qd2 {[%emt 0:00:55]} Kh7 {[%emt 0:02:11]} 34. Rh4 {[%emt 0:01:54]} c6 {[%emt 0:00:29]} 35. Rf5 {[%emt 0:06:23]} Kh8 {[%emt 0:04:00]} 36. Rg4 {[%emt 0:01:54]} Ng5 {[%emt 0:01:47][%cal Be6g5,Bg5h7,Bh7f6][%mdl 32]} 37. f4 $2 {[%emt 0:02:01][%mdl 8192] [#] Loses the game.} (37. Bb3 $17) 37... Nh7 $1 $19 {[%emt 0:00:33]} 38. fxe5 {[%emt 0:01:27]} dxe5 {[%emt 0:00:08]} 39. Qf2 {[%emt 0:00:17]} Nf6 {[%emt 0:01:30]} 40. Rh4 {[%emt 0:00:17]} c5 {[%emt 0:00:09]} 41. Rh1 {[%emt 0:01:00]} Rd7 {[%emt 0:00:10]} 42. Rd1 {[%emt 0:01:43]} Rxd1 {[%emt 0:01:10]} 43. Bxd1 {[%emt 0:00:04]} Rd8 {[%emt 0:00:08]} ({Worse is} 43... Nxe4 44. Qe3 Nf6 45. Rxe5 $11) 44. Bc2 {[%emt 0:00:53]} (44. Qc2 $17 {might work better.}) 44... Kg8 {[%emt 0:00:15]} 45. Rf3 {[%emt 0:00:25]} (45. Qe2 {was necessary.}) 45... Nxh5 {[%emt 0:00:10] Threatens to win with ...Qg5.} 46. Rd3 {[%emt 0:00:21]} Rxd3 {[%emt 0:00:16]} 47. Bxd3 {[%emt 0:00:08][%mdl 4096] Endgame KQB-KQN} Nf6 {[%emt 0:00:16]} 48. Qf3 {[%emt 0:00:42]} g6 {[%emt 0:00:16]} 49. Kf2 {[%emt 0:00:25]} (49. Be2 $142) 49... Kg7 {[%emt 0:00:05]} 50. Bf1 {[%emt 0:00:27]} Qd7 {[%emt 0:00:07] Prevents Bh3. White must now prevent ...Qd2+.} 51. Qd3 {[%emt 0:00:22]} (51. Ke1 $142 b6 52. Qe2) 51... Qxd3 {[%emt 0:00:07]} 52. Bxd3 {[%emt 0:00:06] KB-KN} h5 {[%emt 0:00:15]} 53. Kf3 {[%emt 0:00:17]} Ng4 {[%emt 0:00:22]} 54. Bc2 {[%emt 0:00:34]} Kf6 {[%emt 0:00:05]} 55. Bd3 {[%emt 0:00:10]} Kg5 {[%emt 0:00:18]} 56. Bc2 {[%emt 0:00:26]} Nf6 {[%emt 0:00:21] [#] Hoping for ...b6.} 57. Bd3 {[%emt 0:00:22]} Nd7 {[%emt 0:00:07] aiming for ...f5.} 58. Bc2 {[%emt 0:00:21]} Nb6 {[%emt 0:00:03]} 59. Bb3 {[%emt 0:00:06]} f6 {[%emt 0:00:05]} 60. Kg2 {[%emt 0:00:28]} f5 {[%emt 0:00:06]} 61. Kf3 {[%emt 0:00:27]} Nd7 {[%emt 0:00:49] ...Nf6 is the strong threat.} 62. Bc2 {[%emt 0:00:13]} Nf6 {[%emt 0:00:08]} 63. exf5 {[%emt 0:00:17]} gxf5 {[%emt 0:00:05] Black mates.} 64. Kg2 {[%emt 0:00:34]} e4 {[%emt 0:00:26]} 65. Bd1 {[%emt 0:00:13]} Ng4 {[%emt 0:00:21]} 66. Be2 {[%emt 0:00:08]} h4 {[%emt 0:01:58]} 67. gxh4+ {[%emt 0:00:32]} Kxh4 {[%emt 0:00:07]} 68. Kf1 {[%emt 0:00:09]} Kg3 {[%emt 0:00:11]} 69. Ke1 {[%emt 0:00:06]} f4 {[%emt 0:00:12][%cal Bf5f4,Bf4f3][%mdl 32]} 70. Bd1 {[%emt 0:00:13]} Ne3 {[%emt 0:00:26]} 71. Bh5 {[%emt 0:00:17]} f3 {[%emt 0:00:12] Weighted Error Value: White=0.69/Black=0.21 (precise)} 0-1

[Event "34th Pula Open 2022"]
[Site "Pula"]
[Date "2022.06.19"]
[Round "2.10"]
[White "Cupic, Lovro"]
[Black "Stewart, Ashley"]
[Result "1/2-1/2"]
[ECO "B27"]
[WhiteElo "2271"]
[BlackElo "2076"]
[Annotator "TA"]
[PlyCount "133"]
[EventDate "2022.06.18"]
[EventType "swiss"]
[EventCountry "CRO"]
[SourceTitle "playchess.com"]
[Source "ChessBase"]
[SourceQuality "1"]
[TimeControl "5400+30"]

{[%evp 12,133,14,1,17,10,25,18,22,6,72,8,98,0,80,6,87,0,0,-66,-54,-140,-99,-255,-177,-476,-447,-491,-364,-329,-111,-111,-113,-115,-99,-153,-85,-92,-89,-97,-104,-136,-117,-112,-97,-131,-110,-131,-128,-171,-150,-156,-138,-256,-233,-262,-211,-292,-235,-216,-134,-137,-114,-116,-104,-252,-252,-259,-231,-413,-401,-398,-376,-346,-352,-349,-344,-363,-186,-186,-187,-181,-190,-184,-183,-182,-175,-150,-30,-30,-30,-30,-26,-26,-26,-26,-26,-30,-30,-30,-30,-28,-24,-24,-24,-24,-24,-24,-24,-24,-24,-24,-24,-24,-24,-24,-24,-24,-24,-24,-24,-24,-24,-22]} 1. e4 {[%emt 0:03:36]} c5 {[%emt 0:00:02]} 2. Nf3 {[%emt 0:00:05]} g6 {[%emt 0:00:04]} 3. d4 {[%emt 0:00:05]} cxd4 {[%emt 0:00:05]} 4. Qxd4 {[%emt 0:00:06]} Nf6 {[%emt 0:00:02]} 5. e5 {[%emt 0:00:06]} Nc6 {[%emt 0:00:04]} 6. Qa4 {[%emt 0:00:04]} Nd5 {[%emt 0:00:29]} 7. Qe4 {[%emt 0:00:11]} Nb6 {[%emt 0:00:05] B27: Sicilian: 2 Nf3, unusual Black 2nd moves.} 8. Nc3 {[%emt 0:00:08]} Bg7 {[%emt 0:00:52]} 9. Bf4 {[%emt 0:00:12]} O-O {[%emt 0:02:10] The position is equal.} 10. O-O-O $1 {[%emt 0:00:31]} f6 {[%emt 0:17:28]} (10... d6 $11 {remains equal.}) 11. exf6 (11. Bc4+ $16 Nxc4 12. Qxc4+ Kh8 13. e6) 11... Bxf6 (11... Rxf6 $11 12. Bb5 Rf5) 12. Bh6 {White is much more active.} (12. Bc4+ $16 Nxc4 13. Qxc4+ e6 14. Bd6) 12... Re8 {[#]} (12... Bxc3 $11 {keeps the balance.} 13. Bxf8 (13. bxc3 d5 $11) 13... Bxb2+ 14. Kxb2 Qxf8) 13. Ng5 $146 (13. Nd5 $16) ({Predecessor:} 13. h4 d5 14. Nxd5 Nxd5 15. Rxd5 Qb6 16. Rb5 Qxf2 17. Be3 Qg3 18. Bc4+ Kg7 19. Bf4 {½-½ (33) Darini,P (2474)-Molaei,M (2230) Mashhad 2016}) 13... e6 (13... Bxc3 $11 14. Bc4+ (14. bxc3 d5 $11) 14... e6 15. bxc3 Qf6) 14. h4 (14. Qe3 $1 $16) 14... d5 $11 {[%emt 0:01:58]} 15. Qf4 {[%emt 0:54:14]} (15. Qe1 $11) 15... e5 $15 {[%emt 0:13:58][%cal Be6e5,Be5e4][%mdl 32]} 16. Qh2 {[%emt 0:00:00] [#]} (16. Qg3 $15) 16... Nd4 $1 $17 {[%emt 0:08:44]} 17. Nf3 $2 {[%emt 0:00:00]} (17. Bb5 $17) 17... Bg4 {[%emt 0:07:40] Threatens to win with ...Rc8.} 18. Be2 $2 {[%emt 0:00:00]} (18. Be3) 18... Nxe2+ $19 {[%emt 0:02:38]} 19. Nxe2 {[%emt 0:00:00]} e4 {[%emt 0:18:29]} 20. Nfd4 {[%emt 0:00:00]} Bxd4 $2 {[%emt 0:05:36]} (20... Nc4 $19 21. b3 e3 22. bxc4 exf2) 21. Nxd4 $17 {[%emt 0:00:00]} Bxd1 {[%emt 0:00:05]} 22. Rxd1 {[%emt 0:00:00]} Qf6 {[%emt 0:00:39]} 23. g4 {[%emt 0:00:00] [#]} (23. Qg3 $142) 23... Rac8 {[%emt 0:01:12]} ({Better is} 23... Nc4 $1 {...Rac8 is the strong threat.} 24. Kb1 Rac8) 24. Bg5 {[%emt 0:00:00]} Qe5 {[%emt 0:02:48]} 25. Bf4 {[%emt 0:00:18]} Qg7 {[%emt 0:01:42]} 26. h5 {[%emt 0:00:20]} Nc4 {[%emt 0:02:34]} 27. hxg6 {[%emt 0:02:55]} hxg6 {[%emt 0:00:35]} 28. c3 {[%emt 0:00:11]} Ne5 {[%emt 0:05:06]} 29. Bxe5 {[%emt 0:01:02]} Rxe5 {[%emt 0:01:01]} 30. Rg1 {[%emt 0:00:29][%cal Od4f5]} Qh8 {[%emt 0:03:55]} 31. Qg3 {[%emt 0:00:31]} Rce8 {[%emt 0:01:31]} 32. Ne2 {[%emt 0:01:10]} (32. Kb1 $17) 32... Qf6 {[%emt 0:01:10]} 33. Qe3 {[%emt 0:01:26]} Qg5 {[%emt 0:01:43]} 34. Kd2 {[%emt 0:00:30]} Qxe3+ {[%emt 0:00:28]} 35. Kxe3 $19 {[%emt 0:04:31][%mdl 4096] Endgame KRR-KRN} R5e6 {[%emt 0:00:28]} 36. Nf4 {[%emt 0:00:45]} Rd6 {[%emt 0:00:14]} 37. Rd1 {[%emt 0:03:07]} Red8 {[%emt 0:00:06]} 38. Kd4 {[%emt 0:00:31]} (38. g5 $17 {was necessary.}) 38... g5 {[%emt 0:00:55]} 39. Nh3 {[%emt 0:00:58]} Rg6 {[%emt 0:01:07]} 40. Ke5 $2 {[%emt 0:00:46]} (40. Rf1 {keeps fighting.}) 40... Kf7 {[%emt 0:00:44]} 41. Rxd5 {[%emt 0:16:01]} Re6+ {[%emt 0:00:08]} 42. Kd4 {[%emt 0:00:05]} Rxd5+ {[%emt 0:00:11]} 43. Kxd5 {[%emt 0:00:04] KR-KN} Kf6 {[%emt 0:00:18]} 44. Kd4 {[%emt 0:01:03]} Rd6+ {[%emt 0:02:09]} (44... e3 $142 {( -> ...e2)} 45. fxe3 Rd6+ 46. Ke4 Rd2) 45. Kxe4 {[%emt 0:00:10]} Rd2 {[%emt 0:00:02]} 46. b4 {[%emt 0:02:33]} Re2+ {[%emt 0:00:58]} 47. Kd5 {[%emt 0:02:55]} Rxa2 {[%emt 0:00:12]} 48. f4 {[%emt 0:00:06]} gxf4 {[%emt 0:00:32]} 49. Nxf4 {[%emt 0:00:08]} a5 {[%emt 0:01:06]} ({Black should play} 49... Rd2+ $17 50. Ke4 Kg5) 50. bxa5 $11 {[%emt 0:00:42] Black has an edge.} Rxa5+ {[%emt 0:00:04]} 51. Kd6 {[%emt 0:00:22]} Ra4 {[%emt 0:00:31]} 52. Nd5+ {[%emt 0:00:23]} Kg5 {[%emt 0:00:09]} 53. Kc7 {[%emt 0:00:36]} Ra5 {[%emt 0:00:36]} 54. c4 {[%emt 0:02:26]} Rc5+ {[%emt 0:00:08]} 55. Kxb7 {[%emt 0:00:05]} Rxc4 {[%emt 0:00:05]} 56. Kb6 {[%emt 0:00:07]} Rxg4 {[%emt 0:00:17]} 57. Kc5 {[%emt 0:00:07]} Rg1 {[%emt 0:00:11]} 58. Kd4 {[%emt 0:00:09]} Kf5 {[%emt 0:00:27]} 59. Ne3+ {[%emt 0:00:07]} Ke6 {[%emt 0:00:44]} 60. Ke4 {[%emt 0:00:05]} Ra1 {[%emt 0:00:23]} 61. Nc4 {[%emt 0:00:16]} Rd1 {[%emt 0:00:43]} 62. Ne3 {[%emt 0:00:22]} Re1 {[%emt 0:00:07]} 63. Kd4 {[%emt 0:00:08]} Kf6 {[%emt 0:00:33]} 64. Ke4 {[%emt 0:00:48]} Kg5 {[%emt 0:00:09]} 65. Kd4 {[%emt 0:00:07]} Ra1 {[%emt 0:00:37]} 66. Ke4 {[%emt 0:00:16]} Ra4+ {[%emt 0:00:13]} 67. Ke5 {[%emt 0:00:08] White happily takes the draw.  Weighted Error Value: White=0.36/Black=0.32} 1/2-1/2

[Event "34th Pula Open 2022"]
[Site "Pula"]
[Date "2022.06.19"]
[Round "2.11"]
[White "Karlusic, Luka"]
[Black "Novosel, Lovro"]
[Result "1/2-1/2"]
[ECO "E00"]
[WhiteElo "2054"]
[BlackElo "2279"]
[Annotator "TA"]
[PlyCount "96"]
[EventDate "2022.06.18"]
[EventType "swiss"]
[EventCountry "CRO"]
[SourceTitle "playchess.com"]
[Source "ChessBase"]
[SourceQuality "1"]
[TimeControl "5400+30"]

{[%evp 9,96,20,17,17,11,13,37,33,19,35,39,27,20,0,0,6,12,8,12,0,0,0,0,0,4,5,20,21,22,12,35,33,33,3,3,3,3,3,8,3,3,3,3,3,3,3,3,3,3,0,10,10,18,10,2,0,2,0,0,0,0,0,0,0,0,0,0,0,0,0,0,0,0,0,0,0,0,0,0,0,0,0,2,2,2,2,2,2,2]} 1. d4 {[%emt 0:00:04]} Nf6 {[%emt 0:00:12]} 2. c4 {[%emt 0:00:31]} e6 {[%emt 0:00:27]} 3. Bg5 {[%emt 0:01:18]} Bb4+ {[%emt 0:04:37]} 4. Nd2 {[%emt 0:00:27]} c5 {[%emt 0:01:14]} 5. a3 {[%emt 0:12:01]} Bxd2+ {[%emt 0:06:08]} 6. Qxd2 {[%emt 0:00:07] E00: Catalan Bogo-Indian (3 g3 Bb4+).} cxd4 {[%emt 0:00:37][%cal Of6e4]} 7. Nf3 {[%emt 0:01:27] [#]} O-O $146 {[%cal Of6e4]} (7... Ne4 $5 {[%cal Re4d2]} 8. Bxd8 Nxd2 9. Kxd2 Kxd8 $11) ({Predecessor:} 7... Nc6 8. Nxd4 Ne4 9. Nxc6 bxc6 10. Bxd8 Nxd2 11. Kxd2 Kxd8 12. b4 d5 13. cxd5 cxd5 {½-½ (51) Piceu,T (2345)-Wiley,T (2317) Namur 2006}) 8. Nxd4 {[%emt 0:00:30] White is slightly better.} d5 {[%emt 0:18:55]} 9. cxd5 {[%emt 0:00:30]} Qxd5 {[%emt 0:00:30] [#] ...Ne4 is the strong threat.} 10. Bxf6 {[%emt 0:00:30]} gxf6 {[%emt 0:00:30]} 11. Nf3 {[%emt 0:24:09]} Qxd2+ {[%emt 0:06:22]} 12. Nxd2 {[%emt 0:00:29]} Rd8 {[%emt 0:03:53]} 13. Rc1 {[%emt 0:07:41]} Bd7 {[%emt 0:08:04]} 14. e3 {[%emt 0:04:38]} Bc6 {[%emt 0:00:21]} 15. Be2 {[%emt 0:00:44]} Nd7 {[%emt 0:02:16]} 16. Nf3 {[%emt 0:04:56]} Kf8 {[%emt 0:19:53]} 17. O-O {[%emt 0:04:23]} Ne5 {[%emt 0:02:40]} 18. Nd4 {[%emt 0:02:37]} Bd5 {[%emt 0:02:48]} 19. Rc7 {[%emt 0:04:41]} Nc6 {[%emt 0:07:12]} 20. Nxc6 {[%emt 0:03:28]} Bxc6 {[%emt 0:02:28]} 21. Bh5 {[%emt 0:02:38]} Rd7 {[%emt 0:00:50] The position is equal.} 22. Rxd7 {[%emt 0:00:25]} Bxd7 $11 {[%emt 0:00:04][%mdl 4096] Endgame KRB-KRB} 23. Rc1 {[%emt 0:00:33]} Bc6 {[%emt 0:01:18]} 24. Bf3 {[%emt 0:00:27]} Bxf3 {[%emt 0:04:06]} 25. gxf3 {[%emt 0:00:08] KR-KR} Re8 {[%emt 0:00:10]} 26. Kf1 {[%emt 0:00:42]} Re7 {[%emt 0:00:12]} 27. Rc8+ {[%emt 0:00:14]} Kg7 {[%emt 0:00:10]} 28. Ke2 {[%emt 0:00:47]} Rd7 {[%emt 0:00:06]} 29. b4 {[%emt 0:01:28]} a6 {[%emt 0:03:12]} 30. a4 {[%emt 0:00:56]} h6 {[%emt 0:02:44]} 31. h3 {[%emt 0:05:53]} Kg6 {[%emt 0:00:12]} 32. f4 {[%emt 0:01:03]} f5 {[%emt 0:02:02]} 33. Rc5 {[%emt 0:02:00]} Rd6 {[%emt 0:00:56]} 34. b5 {[%emt 0:02:43]} axb5 {[%emt 0:00:28]} 35. Rxb5 {[%emt 0:00:56]} b6 {[%emt 0:00:51]} 36. a5 {[%emt 0:01:03]} bxa5 {[%emt 0:00:15]} 37. Rxa5 {[%emt 0:00:04]} Rb6 {[%emt 0:00:15]} 38. Kf3 {[%emt 0:00:13]} Rb1 {[%emt 0:00:19]} 39. Ra8 {[%emt 0:00:11]} Rh1 {[%emt 0:01:02]} 40. Kg2 {[%emt 0:00:06]} Rd1 {[%emt 0:00:05]} 41. Rg8+ {[%emt 0:00:10]} Kf6 {[%emt 0:00:07]} 42. Kf3 {[%emt 0:00:23]} Ra1 {[%emt 0:00:20]} 43. Rh8 {[%emt 0:00:12]} Kg7 {[%emt 0:00:04]} 44. Rb8 {[%emt 0:00:09]} Ra6 {[%emt 0:00:25]} 45. Kg3 {[%emt 0:00:11]} f6 {[%emt 0:01:14]} 46. Rb7+ {[%emt 0:00:25]} Kg6 {[%emt 0:00:08]} 47. Re7 {[%emt 0:00:06]} Rb6 {[%emt 0:00:52]} 48. Kf3 {[%emt 0:00:08]} Ra6 {[%emt 0:00:41] Weighted Error Value: White=0.03 (flawless) /Black=0.02 (flawless)} 1/2-1/2

[Event "34th Pula Open 2022"]
[Site "Pula"]
[Date "2022.06.19"]
[Round "2.12"]
[White "Lim, Zhuo Ren"]
[Black "Kejzar, Petra"]
[Result "1/2-1/2"]
[ECO "E05"]
[WhiteElo "2290"]
[BlackElo "2055"]
[Annotator "TA"]
[PlyCount "99"]
[EventDate "2022.06.18"]
[EventType "swiss"]
[EventCountry "CRO"]
[SourceTitle "playchess.com"]
[Source "ChessBase"]
[SourceQuality "1"]
[TimeControl "5400+30"]

{[%evp 24,99,19,30,10,27,67,66,54,50,75,70,80,75,78,0,112,54,41,12,12,11,47,46,191,172,187,166,187,191,193,78,76,77,73,98,97,98,132,118,192,198,212,205,221,219,218,211,217,206,217,194,186,58,73,29,28,0,0,0,165,153,164,140,250,245,232,0,0,0,0,0,0,0,0,0,0,0]} 1. Nf3 {[%emt 0:20:08]} Nf6 {[%emt 0:00:04]} 2. c4 {[%emt 0:00:04]} e6 {[%emt 0:00:04]} 3. d4 {[%emt 0:00:04]} d5 {[%emt 0:00:10]} 4. g3 {[%emt 0:00:05]} Be7 {[%emt 0:00:07]} 5. Bg2 {[%emt 0:00:06]} O-O {[%emt 0:00:22]} 6. O-O {[%emt 0:00:04]} dxc4 {[%emt 0:00:12]} 7. Ne5 {[%emt 0:00:59]} Nc6 {[%emt 0:01:55]} 8. Bxc6 {[%emt 0:00:41]} bxc6 {[%emt 0:00:06]} 9. Nxc6 {[%emt 0:00:03]} Qe8 {[%emt 0:00:09]} 10. Nxe7+ {[%emt 0:00:04]} Qxe7 {[%emt 0:00:05]} 11. Qc2 {[%emt 0:00:04]} c5 $1 {[%emt 0:29:13] The main line 11...c5 scores better than 11...e5.} 12. Qxc4 {[%emt 0:00:30]} cxd4 {[%emt 0:00:30]} 13. Qxd4 {[%emt 0:00:30]} e5 {[%emt 0:00:30] E05: Open Catalan: 5 Nf3 Be7.} 14. Qh4 {[%emt 0:00:30]} Rd8 {[%emt 0:00:30] aiming for ...Rd4.} 15. Bg5 {[%emt 0:00:30]} Rd4 {[%emt 0:00:30] White is slightly better.} 16. Bxf6 {[%emt 0:00:30]} gxf6 {[%emt 0:00:30] [#]} 17. Qh6 $146 {[%emt 0:00:30]} ({Predecessor:} 17. e4 Bb7 18. Nc3 Rad8 19. Rfe1 Qe6 20. Re3 Kh8 21. Rc1 Rc8 22. Rce1 Rg8 23. Qh5 {1-0 (43) Troff,K (2443)-Chiang,S (2101) Saint Louis 2013}) 17... Rb8 {[%emt 0:00:30]} 18. b3 $1 {[%emt 0:00:30]} Rb6 {[%emt 0:00:30]} 19. Rc1 {[%emt 0:00:30]} (19. Nc3 $16) 19... Qd7 {[%emt 0:00:30]} (19... Bb7 $1 $11) 20. Nc3 {[%emt 0:00:30]} (20. Na3 $16) 20... Bb7 {[%emt 0:00:30]} 21. f3 {[%emt 0:00:30]} f5 $1 {[%emt 0:00:30]} 22. Qe3 {[%emt 0:00:30]} f4 {[%emt 0:00:30]} 23. Qxe5 {[%emt 0:00:30] Black must now prevent Rd1.} fxg3 {[%emt 0:00:30]} (23... Re6 $1 $14 24. Qb8+ Re8 25. Qxa7 fxg3 26. hxg3 Qh3 27. Qxd4 Bxf3 28. exf3 Qxg3+ 29. Kh1 Qh3+ 30. Kg1 Qg3+ 31. Kh1 Qh3+ 32. Kg1 Qg3+) 24. hxg3 $18 {[%emt 0:00:30]} Re6 {[%emt 0:00:30]} 25. Qc5 {[%emt 0:00:30]} Rg6 {[%emt 0:00:30] [#]} 26. Kf2 {[%emt 0:00:30]} ({Worse is} 26. Qxa7 Rxg3+ 27. Kf2 Rg2+ 28. Kxg2 Bxf3+ 29. Kf2 Qxa7 $11) 26... Rdd6 {[%emt 0:00:30]} 27. Ne4 {[%emt 0:00:30]} (27. Qe5 $18 {has better winning chances.}) 27... Bxe4 $16 {[%emt 0:00:30]} 28. Qc8+ {[%emt 0:00:30]} Kg7 {[%emt 0:00:30][%cal Od7e7] Strongly threatening ...Qe7!} 29. Qxd7 {[%emt 0:00:30]} ({Reject} 29. fxe4 Rdf6+ 30. Ke1 Qd6 $11) 29... Rxd7 {[%emt 0:00:30]} 30. fxe4 {[%emt 0:00:30][%mdl 4096] Endgame KRR-KRR} Re6 {[%emt 0:00:30]} 31. Rc4 {[%emt 0:00:30]} Kf6 {[%emt 0:00:30]} (31... Ra6 $16) 32. Rh1 $18 {[%emt 0:00:30]} Kg6 {[%emt 0:00:30]} 33. Ra4 {[%emt 0:00:30]} Re5 {[%emt 0:00:30]} 34. Kf3 {[%emt 0:00:30]} h5 {[%emt 0:00:30]} 35. Kf4 {[%emt 0:00:30]} f6 {[%emt 0:00:30]} 36. Rc1 {[%emt 0:00:30]} a5 {[%emt 0:00:30]} 37. Rc6 {[%emt 0:00:30]} Rd1 {[%emt 0:00:30]} 38. Ra6 {[%emt 0:00:30]} (38. Kf3 $18) 38... Rg5 $14 {[%emt 0:00:30]} 39. Kf3 {[%emt 0:00:30]} Rg1 {[%emt 0:00:30]} 40. R4xa5 {[%emt 0:00:30]} R5xg3+ {[%emt 0:00:30]} 41. Kf2 $1 {[%emt 0:00:30] Threatens to win with e5.} h4 $2 {[%emt 0:00:30]} (41... R1g2+ $11 {and Black has nothing to worry.} 42. Ke1 Re3) 42. Rf5 $18 {[%emt 0:00:30]} R1g2+ {[%emt 0:00:30]} 43. Ke1 {[%emt 0:00:30]} h3 {[%emt 0:00:30]} (43... Kg7 $16) 44. Rfxf6+ {[%emt 0:00:30]} ({Stronger than} 44. Raxf6+ Kg7 45. Rf7+ Kg8 46. Rf8+ Kg7 47. R8f7+ Kg8 48. Rf8+ Kg7 $11) 44... Kg7 {[%emt 0:00:30] [#] ...h2 is the strong threat.} 45. Rh6 $2 {[%emt 0:00:30]} (45. Rfc6 $1 $18) 45... Re3 $11 {[%emt 0:00:30][%csl LRe2,LRe4] The position is equal.} 46. Kf1 {[%emt 0:00:30][%cal Oh6h3] And now Rxh3! would win.} Rgxe2 {[%emt 0:00:30]} 47. Rag6+ {[%emt 0:00:30]} Kf7 {[%emt 0:00:30]} 48. Rf6+ {[%emt 0:00:30]} Kg7 {[%emt 0:00:30]} 49. Rfg6+ {[%emt 0:00:30]} Kf7 {[%emt 0:00:30]} 50. Rf6+ {[%emt 0:00:30] Weighted Error Value: White=0.20 (precise) /Black=0.28 (precise)} 1/2-1/2